[Event "Titled Tuesday Blitz February 28 Early 2023"]
[White "Vokhidov, Shamsiddin"]
[Black "So, Wesley"]
[WhiteFideId "14204223"]
[BlackFideId "5202213"]
[WhiteElo "2570"]
[BlackElo "2739"]
[Result "0-1"]
[Round "08"]
[TimeControl "180+2"]
[Date "2023.02.28"]
[WhiteClock "0:00:11"]
[BlackClock "0:00:23"]

1. e4 {[%clk 0:03:00]}  e5 {[%clk 0:02:59]} 2. Nf3 {[%clk 0:03:00]}  Nc6 {[%clk 0:02:59]} 3. Bb5 {[%clk 0:03:01]}  Nf6 {[%clk 0:02:56]} 4. d3 {[%clk 0:02:58]}  Bc5 {[%clk 0:02:55]} 5. c3 {[%clk 0:02:56]}  O-O {[%clk 0:02:53]} 6. O-O {[%clk 0:02:56]}  Re8 {[%clk 0:02:53]} 7. Re1 {[%clk 0:02:55]}  a6 {[%clk 0:02:51]} 8. Ba4 {[%clk 0:02:54]}  d5 {[%clk 0:02:43]} 9. exd5 {[%clk 0:02:52]}  Qxd5 {[%clk 0:02:44]} 10. Bg5 {[%clk 0:02:48]}  Bf5 {[%clk 0:02:27]} 11. Nbd2 {[%clk 0:02:15]}  Ng4 {[%clk 0:02:11]} 12. Bh4 {[%clk 0:02:06]}  Bxd3 {[%clk 0:02:00]} 13. h3 {[%clk 0:02:03]}  Nh6 {[%clk 0:01:30]} 14. Bxc6 {[%clk 0:02:02]}  bxc6 {[%clk 0:01:28]} 15. Nb3 {[%clk 0:02:03]}  e4 {[%clk 0:00:58]} 16. Nxc5 {[%clk 0:01:58]}  Qxc5 {[%clk 0:00:59]} 17. Nd4 {[%clk 0:01:55]}  Qd5 {[%clk 0:00:55]} 18. Bg3 {[%clk 0:00:55]}  c5 {[%clk 0:00:51]} 19. Nc2 {[%clk 0:00:56]}  Qb7 {[%clk 0:00:51]} 20. Ne3 {[%clk 0:00:54]}  Qxb2 {[%clk 0:00:51]} 21. Bf4 {[%clk 0:00:48]}  Re6 {[%clk 0:00:45]} 22. Nd5 {[%clk 0:00:35]}  Rd8 {[%clk 0:00:44]} 23. Nxc7 {[%clk 0:00:34]}  Rf6 {[%clk 0:00:44]} 24. Bg5 {[%clk 0:00:34]}  Qxf2+ {[%clk 0:00:43]} 25. Kh1 {[%clk 0:00:34]}  Rg6 {[%clk 0:00:38]} 26. Qd2 {[%clk 0:00:19]}  Qxd2 {[%clk 0:00:34]} 27. Bxd2 {[%clk 0:00:20]}  Nf5 {[%clk 0:00:32]} 28. Bf4 {[%clk 0:00:19]}  h5 {[%clk 0:00:32]} 29. c4 {[%clk 0:00:18]}  h4 {[%clk 0:00:29]} 30. Nd5 {[%clk 0:00:19]}  Bxc4 {[%clk 0:00:28]} 31. Nc3 {[%clk 0:00:18]}  Rd4 {[%clk 0:00:24]} 32. Rxe4 {[%clk 0:00:17]}  Rxe4 {[%clk 0:00:24]} 33. Nxe4 {[%clk 0:00:18]}  Bd5 {[%clk 0:00:24]} 34. Nxc5 {[%clk 0:00:11]}  Rxg2 {[%clk 0:00:23]} 0-1


[Site "https://www.chess.com"]

[Event "Titled Tuesday Blitz February 28 Early 2023"]
[White "Timofeev, Artyom"]
[Black "Duda, Jan-Krzysztof"]
[WhiteFideId "4140419"]
[BlackFideId "1170546"]
[WhiteElo "2586"]
[BlackElo "2790"]
[Result "0-1"]
[Round "08"]
[TimeControl "180+2"]
[Date "2023.02.28"]
[WhiteClock "0:00:01"]
[BlackClock "0:00:02"]

1. c4 {[%clk 0:03:00]}  c5 {[%clk 0:02:57]} 2. Nf3 {[%clk 0:02:59]}  Nc6 {[%clk 0:02:56]} 3. Nc3 {[%clk 0:02:59]}  e5 {[%clk 0:02:51]} 4. g3 {[%clk 0:02:58]}  g6 {[%clk 0:02:45]} 5. Bg2 {[%clk 0:02:57]}  Bg7 {[%clk 0:02:46]} 6. O-O {[%clk 0:02:57]}  d6 {[%clk 0:02:42]} 7. Rb1 {[%clk 0:02:55]}  Nge7 {[%clk 0:02:42]} 8. a3 {[%clk 0:02:54]}  a5 {[%clk 0:02:42]} 9. d3 {[%clk 0:02:54]}  h6 {[%clk 0:02:36]} 10. Ne1 {[%clk 0:02:47]}  Be6 {[%clk 0:02:35]} 11. Nd5 {[%clk 0:02:45]}  O-O {[%clk 0:02:21]} 12. Nc2 {[%clk 0:02:44]}  Bxd5 {[%clk 0:02:08]} 13. cxd5 {[%clk 0:02:43]}  Nd4 {[%clk 0:02:09]} 14. a4 {[%clk 0:02:38]}  Nxc2 {[%clk 0:02:05]} 15. Qxc2 {[%clk 0:02:38]}  Kh7 {[%clk 0:02:04]} 16. e4 {[%clk 0:02:30]}  h5 {[%clk 0:01:50]} 17. f4 {[%clk 0:02:27]}  exf4 {[%clk 0:01:47]} 18. gxf4 {[%clk 0:02:27]}  Bd4+ {[%clk 0:01:48]} 19. Kh1 {[%clk 0:02:27]}  Ng8 {[%clk 0:01:48]} 20. Qe2 {[%clk 0:02:11]}  Nh6 {[%clk 0:01:45]} 21. Be3 {[%clk 0:02:09]}  Qh4 {[%clk 0:01:36]} 22. Bxd4 {[%clk 0:01:58]}  cxd4 {[%clk 0:01:37]} 23. Qf2 {[%clk 0:01:59]}  Qxf2 {[%clk 0:01:35]} 24. Rxf2 {[%clk 0:01:59]}  Ng4 {[%clk 0:01:20]} 25. Rc2 {[%clk 0:01:58]}  Rac8 {[%clk 0:01:20]} 26. Rd2 {[%clk 0:01:02]}  Ne3 {[%clk 0:00:55]} 27. Kg1 {[%clk 0:01:02]}  b6 {[%clk 0:00:41]} 28. Kf2 {[%clk 0:00:59]}  f5 {[%clk 0:00:40]} 29. e5 {[%clk 0:00:43]}  dxe5 {[%clk 0:00:39]} 30. fxe5 {[%clk 0:00:43]}  Ng4+ {[%clk 0:00:39]} 31. Kg1 {[%clk 0:00:25]}  Nxe5 {[%clk 0:00:40]} 32. b4 {[%clk 0:00:25]}  axb4 {[%clk 0:00:34]} 33. Rxb4 {[%clk 0:00:24]}  Rc1+ {[%clk 0:00:34]} 34. Kf2 {[%clk 0:00:25]}  Ng4+ {[%clk 0:00:21]} 35. Kf3 {[%clk 0:00:25]}  g5 {[%clk 0:00:13]} 36. Rxb6 {[%clk 0:00:16]}  Re1 {[%clk 0:00:10]} 37. Re6 {[%clk 0:00:15]}  Ne5+ {[%clk 0:00:03]} 38. Kf2 {[%clk 0:00:15]}  Re3 {[%clk 0:00:04]} 39. a5 {[%clk 0:00:10]}  Rb8 {[%clk 0:00:04]} 40. a6 {[%clk 0:00:09]}  Ng4+ {[%clk 0:00:04]} 41. Kg1 {[%clk 0:00:07]}  Rb1+ {[%clk 0:00:04]} 42. Bf1 {[%clk 0:00:08]}  Rf3 {[%clk 0:00:05]} 43. Kg2 {[%clk 0:00:01]}  Rfxf1 {[%clk 0:00:03]} 44. a7 {[%clk 0:00:01]}  Rg1+ {[%clk 0:00:03]} 45. Kf3 {[%clk 0:00:01]}  Rbf1+ {[%clk 0:00:02]} 0-1


[Site "https://www.chess.com"]

[Event "Titled Tuesday Blitz February 28 Early 2023"]
[White "Darini, Pouria"]
[Black "Tabatabaei, M. Amin"]
[WhiteFideId "12502200"]
[BlackFideId "12521213"]
[WhiteElo "2482"]
[BlackElo "2565"]
[Result "0-1"]
[Round "08"]
[TimeControl "180+2"]
[Date "2023.02.28"]
[WhiteClock "0:00:03"]
[BlackClock "0:00:03"]

1. e4 {[%clk 0:03:00]}  c6 {[%clk 0:02:57]} 2. d4 {[%clk 0:02:58]}  d5 {[%clk 0:02:58]} 3. e5 {[%clk 0:02:58]}  Bf5 {[%clk 0:02:57]} 4. Nf3 {[%clk 0:02:52]}  e6 {[%clk 0:02:57]} 5. Be2 {[%clk 0:02:53]}  Bb4+ {[%clk 0:02:56]} 6. c3 {[%clk 0:02:49]}  Ba5 {[%clk 0:02:57]} 7. O-O {[%clk 0:02:50]}  Nd7 {[%clk 0:02:57]} 8. Re1 {[%clk 0:02:48]}  Bc7 {[%clk 0:02:55]} 9. Nbd2 {[%clk 0:02:44]}  f6 {[%clk 0:02:53]} 10. Nh4 {[%clk 0:02:27]}  fxe5 {[%clk 0:02:53]} 11. Nxf5 {[%clk 0:02:21]}  exf5 {[%clk 0:02:53]} 12. dxe5 {[%clk 0:02:21]}  Nxe5 {[%clk 0:02:54]} 13. Nf3 {[%clk 0:02:08]}  Nxf3+ {[%clk 0:02:37]} 14. Bxf3+ {[%clk 0:02:07]}  Kf7 {[%clk 0:02:38]} 15. Qd3 {[%clk 0:01:53]}  Qd7 {[%clk 0:02:22]} 16. c4 {[%clk 0:01:24]}  d4 {[%clk 0:02:01]} 17. c5 {[%clk 0:01:15]}  Nf6 {[%clk 0:02:01]} 18. Bg5 {[%clk 0:01:08]}  Rhe8 {[%clk 0:01:56]} 19. g3 {[%clk 0:00:35]}  h6 {[%clk 0:01:13]} 20. Bxf6 {[%clk 0:00:33]}  Kxf6 {[%clk 0:01:14]} 21. Rad1 {[%clk 0:00:27]}  Rad8 {[%clk 0:01:06]} 22. Kf1 {[%clk 0:00:15]}  g5 {[%clk 0:00:51]} 23. Bh5 {[%clk 0:00:14]}  Rxe1+ {[%clk 0:00:34]} 24. Rxe1 {[%clk 0:00:15]}  Qd5 {[%clk 0:00:33]} 25. Kg1 {[%clk 0:00:15]}  Rd7 {[%clk 0:00:24]} 26. Qe2 {[%clk 0:00:09]}  Qe5 {[%clk 0:00:19]} 27. Qd1 {[%clk 0:00:07]}  Qxc5 {[%clk 0:00:19]} 28. Qb3 {[%clk 0:00:08]}  Qd5 {[%clk 0:00:15]} 29. Qxb7 {[%clk 0:00:08]}  d3 {[%clk 0:00:15]} 30. Qc8 {[%clk 0:00:05]}  Bd8 {[%clk 0:00:15]} 31. Rd1 {[%clk 0:00:03]}  d2 {[%clk 0:00:16]} 32. Qa6 {[%clk 0:00:04]}  Bb6 {[%clk 0:00:15]} 33. Qe2 {[%clk 0:00:04]}  g4 {[%clk 0:00:07]} 34. Qe8 {[%clk 0:00:04]}  Qd6 {[%clk 0:00:02]} 35. Qh8+ {[%clk 0:00:04]}  Kg5 {[%clk 0:00:02]} 36. Be8 {[%clk 0:00:03]}  Re7 {[%clk 0:00:02]} 37. Qg8+ {[%clk 0:00:04]}  Kf6 {[%clk 0:00:03]} 38. Qf8+ {[%clk 0:00:04]}  Kg5 {[%clk 0:00:03]} 39. Qg8+ {[%clk 0:00:04]}  Kf6 {[%clk 0:00:03]} 40. Qf8+ {[%clk 0:00:05]}  Ke6 {[%clk 0:00:03]} 41. Qg8+ {[%clk 0:00:03]}  Ke5 {[%clk 0:00:03]} 42. Qh8+ {[%clk 0:00:02]}  Ke4 {[%clk 0:00:04]} 43. Bh5 {[%clk 0:00:01]}  Qd4 {[%clk 0:00:02]} 44. Qxd4+ {[%clk 0:00:01]}  Bxd4 {[%clk 0:00:02]} 45. Rxd2 {[%clk 0:00:02]}  Rb7 {[%clk 0:00:02]} 46. b3 {[%clk 0:00:02]}  c5 {[%clk 0:00:03]} 47. Be8 {[%clk 0:00:02]}  Rb6 {[%clk 0:00:03]} 48. Bd7 {[%clk 0:00:02]}  Rd6 {[%clk 0:00:02]} 49. Bb5 {[%clk 0:00:01]}  Ke5 {[%clk 0:00:01]} 50. Re2+ {[%clk 0:00:01]}  Kf6 {[%clk 0:00:01]} 51. Bc4 {[%clk 0:00:02]}  Be5 {[%clk 0:00:01]} 52. Kg2 {[%clk 0:00:02]}  Rd1 {[%clk 0:00:02]} 53. f4 {[%clk 0:00:02]}  Bd4 {[%clk 0:00:02]} 54. Re6+ {[%clk 0:00:02]}  Kg7 {[%clk 0:00:03]} 55. Re7+ {[%clk 0:00:03]}  Kf8 {[%clk 0:00:03]} 56. Re2 {[%clk 0:00:03]}  Rg1# {[%clk 0:00:03]} 0-1


[Site "https://www.chess.com"]

[Event "Titled Tuesday Blitz February 28 Early 2023"]
[White "Bruzon Batista, Lazaro"]
[Black "Erigaisi Arjun"]
[WhiteFideId "3503739"]
[BlackFideId "35009192"]
[WhiteElo "2709"]
[BlackElo "2737"]
[Result "0-1"]
[Round "08"]
[TimeControl "180+2"]
[Date "2023.02.28"]
[WhiteClock "0:00:02"]
[BlackClock "0:00:09"]

1. d4 {[%clk 0:03:00]}  d6 {[%clk 0:02:58]} 2. e4 {[%clk 0:02:59]}  g6 {[%clk 0:02:58]} 3. Nf3 {[%clk 0:02:58]}  Bg7 {[%clk 0:02:58]} 4. c3 {[%clk 0:02:58]}  Nf6 {[%clk 0:02:56]} 5. Bd3 {[%clk 0:02:58]}  O-O {[%clk 0:02:55]} 6. O-O {[%clk 0:02:58]}  Nc6 {[%clk 0:02:54]} 7. Re1 {[%clk 0:02:55]}  e5 {[%clk 0:02:54]} 8. h3 {[%clk 0:02:54]}  h6 {[%clk 0:02:50]} 9. a3 {[%clk 0:02:52]}  Re8 {[%clk 0:02:45]} 10. Nbd2 {[%clk 0:02:50]}  a5 {[%clk 0:02:27]} 11. Nf1 {[%clk 0:02:48]}  exd4 {[%clk 0:02:16]} 12. cxd4 {[%clk 0:02:48]}  d5 {[%clk 0:02:17]} 13. e5 {[%clk 0:02:46]}  Ne4 {[%clk 0:02:18]} 14. Be3 {[%clk 0:02:30]}  Ne7 {[%clk 0:02:10]} 15. N1d2 {[%clk 0:02:24]}  Bf5 {[%clk 0:02:05]} 16. Bf1 {[%clk 0:02:11]}  c6 {[%clk 0:02:00]} 17. g4 {[%clk 0:02:07]}  Nxd2 {[%clk 0:01:43]} 18. Nxd2 {[%clk 0:02:06]}  Be6 {[%clk 0:01:41]} 19. Rc1 {[%clk 0:02:05]}  Rc8 {[%clk 0:01:28]} 20. f4 {[%clk 0:02:04]}  c5 {[%clk 0:01:20]} 21. Nf3 {[%clk 0:01:58]}  c4 {[%clk 0:01:18]} 22. Bf2 {[%clk 0:01:47]}  b5 {[%clk 0:01:07]} 23. Qd2 {[%clk 0:01:46]}  Qb6 {[%clk 0:01:07]} 24. Nh4 {[%clk 0:01:45]}  b4 {[%clk 0:01:04]} 25. axb4 {[%clk 0:01:44]}  Qxb4 {[%clk 0:01:03]} 26. Qc2 {[%clk 0:01:43]}  Qb3 {[%clk 0:01:00]} 27. Qb1 {[%clk 0:01:37]}  g5 {[%clk 0:00:49]} 28. Rc3 {[%clk 0:01:24]}  Qb6 {[%clk 0:00:35]} 29. fxg5 {[%clk 0:01:24]}  hxg5 {[%clk 0:00:36]} 30. Nf3 {[%clk 0:01:22]}  f6 {[%clk 0:00:35]} 31. exf6 {[%clk 0:01:20]}  Bxf6 {[%clk 0:00:36]} 32. Qc1 {[%clk 0:01:20]}  Ng6 {[%clk 0:00:31]} 33. Nxg5 {[%clk 0:01:18]}  Bxd4 {[%clk 0:00:28]} 34. Bxd4 {[%clk 0:00:50]}  Qxd4+ {[%clk 0:00:29]} 35. Qe3 {[%clk 0:00:50]}  Qxe3+ {[%clk 0:00:29]} 36. Rcxe3 {[%clk 0:00:50]}  Bd7 {[%clk 0:00:29]} 37. Bg2 {[%clk 0:00:50]}  Nf4 {[%clk 0:00:27]} 38. Re7 {[%clk 0:00:40]}  d4 {[%clk 0:00:24]} 39. Nh7 {[%clk 0:00:27]}  Rxe7 {[%clk 0:00:16]} 40. Rxe7 {[%clk 0:00:27]}  Bc6 {[%clk 0:00:15]} 41. Bf1 {[%clk 0:00:11]}  d3 {[%clk 0:00:14]} 42. Kf2 {[%clk 0:00:04]}  Nd5 {[%clk 0:00:10]} 43. Ra7 {[%clk 0:00:02]}  Rb8 {[%clk 0:00:09]} 0-1


[Site "https://www.chess.com"]

[Event "Titled Tuesday Blitz February 28 Early 2023"]
[White "Madaminov, Mukhiddin"]
[Black "Deac, Bogdan-Daniel"]
[WhiteFideId "14210703"]
[BlackFideId "1226380"]
[WhiteElo "2511"]
[BlackElo "2649"]
[Result "1/2-1/2"]
[Round "08"]
[TimeControl "180+2"]
[Date "2023.02.28"]
[WhiteClock "0:00:03"]
[BlackClock "0:00:05"]

1. d4 {[%clk 0:03:00]}  d5 {[%clk 0:02:59]} 2. Nc3 {[%clk 0:03:01]}  Bf5 {[%clk 0:02:58]} 3. f3 {[%clk 0:03:01]}  e6 {[%clk 0:02:57]} 4. e4 {[%clk 0:03:01]}  Bg6 {[%clk 0:02:58]} 5. h4 {[%clk 0:03:01]}  h6 {[%clk 0:02:57]} 6. h5 {[%clk 0:03:02]}  Bh7 {[%clk 0:02:57]} 7. Bd3 {[%clk 0:03:02]}  Bb4 {[%clk 0:02:41]} 8. Ne2 {[%clk 0:03:02]}  Nc6 {[%clk 0:02:36]} 9. exd5 {[%clk 0:02:52]}  Bxd3 {[%clk 0:02:21]} 10. Qxd3 {[%clk 0:02:49]}  Qxd5 {[%clk 0:02:14]} 11. Be3 {[%clk 0:02:41]}  Nge7 {[%clk 0:02:06]} 12. O-O-O {[%clk 0:02:39]}  Qa5 {[%clk 0:02:02]} 13. a3 {[%clk 0:02:39]}  Bxc3 {[%clk 0:02:02]} 14. Nxc3 {[%clk 0:02:40]}  O-O-O {[%clk 0:02:02]} 15. g4 {[%clk 0:02:34]}  Nd5 {[%clk 0:01:53]} 16. Nxd5 {[%clk 0:02:28]}  Qxd5 {[%clk 0:01:52]} 17. Rhf1 {[%clk 0:02:07]}  Qa2 {[%clk 0:01:46]} 18. c3 {[%clk 0:02:04]}  Na5 {[%clk 0:01:34]} 19. Qb1 {[%clk 0:02:01]}  Qb3 {[%clk 0:01:18]} 20. Qc2 {[%clk 0:02:01]}  Qb5 {[%clk 0:01:17]} 21. Bf4 {[%clk 0:01:34]}  Rd7 {[%clk 0:01:17]} 22. Kb1 {[%clk 0:01:28]}  Rhd8 {[%clk 0:01:11]} 23. Ka2 {[%clk 0:01:27]}  Nc6 {[%clk 0:01:04]} 24. b3 {[%clk 0:01:08]}  Ne7 {[%clk 0:00:45]} 25. Bc1 {[%clk 0:00:58]}  Qc6 {[%clk 0:00:31]} 26. Bb2 {[%clk 0:00:55]}  Nd5 {[%clk 0:00:24]} 27. Qd2 {[%clk 0:00:52]}  b6 {[%clk 0:00:24]} 28. c4 {[%clk 0:00:51]}  Nf6 {[%clk 0:00:21]} 29. Qe2 {[%clk 0:00:50]}  a5 {[%clk 0:00:18]} 30. a4 {[%clk 0:00:47]}  Kb8 {[%clk 0:00:18]} 31. Rd2 {[%clk 0:00:46]}  Ne8 {[%clk 0:00:17]} 32. Rfd1 {[%clk 0:00:45]}  Nf6 {[%clk 0:00:11]} 33. Rd3 {[%clk 0:00:45]}  Qd6 {[%clk 0:00:10]} 34. Bc1 {[%clk 0:00:31]}  Qg3 {[%clk 0:00:05]} 35. Kb1 {[%clk 0:00:31]}  Qd6 {[%clk 0:00:05]} 36. Kc2 {[%clk 0:00:30]}  Ka7 {[%clk 0:00:05]} 37. Qe5 {[%clk 0:00:23]}  Qc6 {[%clk 0:00:04]} 38. Ba3 {[%clk 0:00:22]}  Ne8 {[%clk 0:00:04]} 39. Qb5 {[%clk 0:00:18]}  Qb7 {[%clk 0:00:03]} 40. Qe5 {[%clk 0:00:18]}  Qc6 {[%clk 0:00:03]} 41. Qe4 {[%clk 0:00:18]}  Qb7 {[%clk 0:00:03]} 42. Qxb7+ {[%clk 0:00:14]}  Kxb7 {[%clk 0:00:03]} 43. Bb2 {[%clk 0:00:15]}  Nf6 {[%clk 0:00:02]} 44. R3d2 {[%clk 0:00:09]}  Ne8 {[%clk 0:00:02]} 45. Re2 {[%clk 0:00:08]}  c6 {[%clk 0:00:02]} 46. Rde1 {[%clk 0:00:09]}  Rd6 {[%clk 0:00:02]} 47. Rd2 {[%clk 0:00:09]}  R6d7 {[%clk 0:00:03]} 48. Red1 {[%clk 0:00:09]}  Rd6 {[%clk 0:00:03]} 49. Kd3 {[%clk 0:00:10]}  f6 {[%clk 0:00:03]} 50. Ke3 {[%clk 0:00:10]}  Nc7 {[%clk 0:00:04]} 51. Ba3 {[%clk 0:00:11]}  R6d7 {[%clk 0:00:04]} 52. Ke4 {[%clk 0:00:10]}  Na6 {[%clk 0:00:04]} 53. f4 {[%clk 0:00:10]}  Nc7 {[%clk 0:00:04]} 54. f5 {[%clk 0:00:09]}  Re8 {[%clk 0:00:04]} 55. Kf3 {[%clk 0:00:09]}  exf5 {[%clk 0:00:03]} 56. gxf5 {[%clk 0:00:10]}  Red8 {[%clk 0:00:03]} 57. Rd3 {[%clk 0:00:09]}  c5 {[%clk 0:00:03]} 58. d5 {[%clk 0:00:08]}  Ne8 {[%clk 0:00:04]} 59. Re3 {[%clk 0:00:08]}  Nd6 {[%clk 0:00:04]} 60. Kf4 {[%clk 0:00:08]}  Nf7 {[%clk 0:00:04]} 61. Bb2 {[%clk 0:00:07]}  Ng5 {[%clk 0:00:04]} 62. Rde1 {[%clk 0:00:08]}  Kc7 {[%clk 0:00:05]} 63. Re8 {[%clk 0:00:04]}  Rxe8 {[%clk 0:00:05]} 64. Rxe8 {[%clk 0:00:04]}  Rd8 {[%clk 0:00:06]} 65. Re7+ {[%clk 0:00:03]}  Rd7 {[%clk 0:00:06]} 66. Re8 {[%clk 0:00:04]}  Rd8 {[%clk 0:00:06]} 67. Re7+ {[%clk 0:00:04]}  Rd7 {[%clk 0:00:07]} 68. Re3 {[%clk 0:00:05]}  Kd8 {[%clk 0:00:06]} 69. Bc3 {[%clk 0:00:05]}  Re7 {[%clk 0:00:07]} 70. Rxe7 {[%clk 0:00:05]}  Kxe7 {[%clk 0:00:08]} 71. Bd2 {[%clk 0:00:05]}  Kd7 {[%clk 0:00:07]} 72. Be1 {[%clk 0:00:05]}  Nf7 {[%clk 0:00:07]} 73. Ke4 {[%clk 0:00:05]}  Nd6+ {[%clk 0:00:07]} 74. Kf4 {[%clk 0:00:05]}  Nf7 {[%clk 0:00:06]} 75. Bg3 {[%clk 0:00:05]}  Nd6 {[%clk 0:00:06]} 76. Bh2 {[%clk 0:00:03]}  Nf7 {[%clk 0:00:06]} 77. Kg4 {[%clk 0:00:03]}  Ng5 {[%clk 0:00:07]} 78. Bf4 {[%clk 0:00:04]}  Ne4 {[%clk 0:00:06]} 79. Kf3 {[%clk 0:00:04]}  Ng5+ {[%clk 0:00:06]} 80. Kg4 {[%clk 0:00:04]}  Nf7 {[%clk 0:00:06]} 81. Kf3 {[%clk 0:00:02]}  Nd8 {[%clk 0:00:05]} 82. Ke4 {[%clk 0:00:03]}  Nb7 {[%clk 0:00:05]} 83. Bg3 {[%clk 0:00:03]}  Ke7 {[%clk 0:00:05]} 84. Bc7 {[%clk 0:00:02]}  Nd6+ {[%clk 0:00:05]} 85. Kf4 {[%clk 0:00:03]}  Nc8 {[%clk 0:00:05]} 86. Ke4 {[%clk 0:00:02]}  Kd7 {[%clk 0:00:05]} 87. Bg3 {[%clk 0:00:02]}  Nd6+ {[%clk 0:00:05]} 88. Kf4 {[%clk 0:00:03]}  Nf7 {[%clk 0:00:05]} 89. Kg4 {[%clk 0:00:02]}  Ng5 {[%clk 0:00:05]} 90. Bf4 {[%clk 0:00:03]} 1/2-1/2


[Site "https://www.chess.com"]

[Event "Titled Tuesday Blitz February 28 Early 2023"]
[White "Indjic, Aleksandar"]
[Black "Shimanov, Aleksandr"]
[WhiteFideId "911925"]
[BlackFideId "4198603"]
[WhiteElo "2625"]
[BlackElo "2631"]
[Result "1-0"]
[Round "08"]
[TimeControl "180+2"]
[Date "2023.02.28"]
[WhiteClock "0:01:06"]
[BlackClock "0:00:01"]

1. d4 {[%clk 0:03:00]}  d5 {[%clk 0:02:58]} 2. c4 {[%clk 0:03:01]}  c6 {[%clk 0:02:58]} 3. Nf3 {[%clk 0:02:59]}  Nf6 {[%clk 0:02:59]} 4. Qc2 {[%clk 0:03:00]}  dxc4 {[%clk 0:02:54]} 5. e4 {[%clk 0:03:00]}  b5 {[%clk 0:02:54]} 6. b3 {[%clk 0:03:00]}  cxb3 {[%clk 0:02:54]} 7. axb3 {[%clk 0:03:01]}  e6 {[%clk 0:02:54]} 8. Bd3 {[%clk 0:03:00]}  a5 {[%clk 0:02:54]} 9. O-O {[%clk 0:02:57]}  Na6 {[%clk 0:02:53]} 10. Qxc6+ {[%clk 0:02:56]}  Bd7 {[%clk 0:02:52]} 11. Qc2 {[%clk 0:02:56]}  Nb4 {[%clk 0:02:52]} 12. Qe2 {[%clk 0:02:57]}  Nxd3 {[%clk 0:02:52]} 13. Qxd3 {[%clk 0:02:58]}  Be7 {[%clk 0:02:51]} 14. Bg5 {[%clk 0:02:56]}  h6 {[%clk 0:02:49]} 15. Bxf6 {[%clk 0:02:54]}  Bxf6 {[%clk 0:02:50]} 16. Nc3 {[%clk 0:02:54]}  b4 {[%clk 0:02:46]} 17. Na4 {[%clk 0:02:52]}  O-O {[%clk 0:02:45]} 18. Nc5 {[%clk 0:02:51]}  Bc6 {[%clk 0:02:33]} 19. Rfc1 {[%clk 0:02:51]}  Qb6 {[%clk 0:02:30]} 20. Qe3 {[%clk 0:02:46]}  Rfd8 {[%clk 0:02:24]} 21. h4 {[%clk 0:02:45]}  Rac8 {[%clk 0:02:18]} 22. Rc2 {[%clk 0:02:21]}  Be8 {[%clk 0:02:05]} 23. Rac1 {[%clk 0:02:13]}  Be7 {[%clk 0:01:34]} 24. g4 {[%clk 0:01:58]}  Bxc5 {[%clk 0:01:00]} 25. Rxc5 {[%clk 0:01:59]}  Rxc5 {[%clk 0:00:59]} 26. dxc5 {[%clk 0:02:00]}  Qc7 {[%clk 0:01:00]} 27. g5 {[%clk 0:01:59]}  hxg5 {[%clk 0:00:59]} 28. hxg5 {[%clk 0:01:58]}  e5 {[%clk 0:00:59]} 29. c6 {[%clk 0:01:54]}  f6 {[%clk 0:00:48]} 30. gxf6 {[%clk 0:01:48]}  gxf6 {[%clk 0:00:49]} 31. Kh1 {[%clk 0:01:47]}  Qh7+ {[%clk 0:00:48]} 32. Nh2 {[%clk 0:01:46]}  Rc8 {[%clk 0:00:47]} 33. Qg3+ {[%clk 0:01:36]}  Kh8 {[%clk 0:00:46]} 34. Qg4 {[%clk 0:01:35]}  f5 {[%clk 0:00:38]} 35. Qg3 {[%clk 0:01:19]}  Qg7 {[%clk 0:00:27]} 36. Qh4+ {[%clk 0:01:17]}  Qh7 {[%clk 0:00:27]} 37. Qf6+ {[%clk 0:01:16]}  Qg7 {[%clk 0:00:28]} 38. Qe6 {[%clk 0:01:16]}  Ra8 {[%clk 0:00:04]} 39. Rg1 {[%clk 0:01:15]}  Bf7 {[%clk 0:00:01]} 40. Qxf5 {[%clk 0:01:06]} 1-0


[Site "https://www.chess.com"]

[Event "Titled Tuesday Blitz February 28 Early 2023"]
[White "Koelle, Tobias"]
[Black "Sadhwani, Raunak"]
[WhiteFideId "16207378"]
[BlackFideId "35093487"]
[WhiteElo "2497"]
[BlackElo "2631"]
[Result "0-1"]
[Round "08"]
[TimeControl "180+2"]
[Date "2023.02.28"]
[WhiteClock "0:01:12"]
[BlackClock "0:00:25"]

1. d4 {[%clk 0:03:00]}  g6 {[%clk 0:02:59]} 2. e4 {[%clk 0:02:56]}  d6 {[%clk 0:02:59]} 3. Nc3 {[%clk 0:02:57]}  Bg7 {[%clk 0:02:59]} 4. Be3 {[%clk 0:02:57]}  c6 {[%clk 0:02:59]} 5. Qd2 {[%clk 0:02:56]}  b5 {[%clk 0:02:59]} 6. a3 {[%clk 0:02:56]}  a5 {[%clk 0:02:57]} 7. f4 {[%clk 0:02:55]}  Nf6 {[%clk 0:02:56]} 8. Nf3 {[%clk 0:02:54]}  Bb7 {[%clk 0:02:47]} 9. e5 {[%clk 0:02:53]}  Nfd7 {[%clk 0:02:45]} 10. Bd3 {[%clk 0:02:45]}  O-O {[%clk 0:02:38]} 11. h4 {[%clk 0:02:44]}  b4 {[%clk 0:02:35]} 12. Ne4 {[%clk 0:02:42]}  c5 {[%clk 0:02:35]} 13. h5 {[%clk 0:02:31]}  cxd4 {[%clk 0:02:34]} 14. Bxd4 {[%clk 0:02:31]}  Nc6 {[%clk 0:02:34]} 15. hxg6 {[%clk 0:02:28]}  hxg6 {[%clk 0:02:35]} 16. Be3 {[%clk 0:02:21]}  bxa3 {[%clk 0:02:17]} 17. Rxa3 {[%clk 0:02:16]}  Nb4 {[%clk 0:02:10]} 18. f5 {[%clk 0:02:12]}  Nxd3+ {[%clk 0:02:08]} 19. cxd3 {[%clk 0:02:10]}  Nxe5 {[%clk 0:02:04]} 20. Bh6 {[%clk 0:02:10]}  Nxf3+ {[%clk 0:01:55]} 21. gxf3 {[%clk 0:02:11]}  Bd4 {[%clk 0:01:55]} 22. Qg5 {[%clk 0:01:51]}  Bxe4 {[%clk 0:00:58]} 23. fxe4 {[%clk 0:01:46]}  e6 {[%clk 0:00:58]} 24. Qg2 {[%clk 0:01:39]}  exf5 {[%clk 0:00:56]} 25. Bxf8 {[%clk 0:01:38]}  Kxf8 {[%clk 0:00:47]} 26. exf5 {[%clk 0:01:38]}  Rb8 {[%clk 0:00:37]} 27. fxg6 {[%clk 0:01:23]}  Rxb2 {[%clk 0:00:37]} 28. Qe4 {[%clk 0:01:24]}  Qf6 {[%clk 0:00:26]} 29. Kd1 {[%clk 0:01:13]}  Rb1+ {[%clk 0:00:24]} 30. Kc2 {[%clk 0:01:12]}  Qf2+ {[%clk 0:00:25]} 0-1


[Site "https://www.chess.com"]